bitfinex-derivatives/quotes_ETHF0:USTF0_20250405
["timestamp","ask_amount","ask_price","bid_price","bid_amount"]
[1743848476906,0.00824584,1817.6,1817.5,6.07463464]
[1743848478815,0.00824584,1817.6,1817.5,5.5386427]
[1743848479824,0.00824584,1817.6,1817.5,6.07391654]
[1743848480321,0.00824584,1817.6,1817.5,3.57391654]
[1743848480521,0.00824584,1817.6,1817.5,3.0386427]
[1743848480724,0.00824584,1817.6,1817.5,6.2464427]
[1743848482022,0.00824584,1817.6,1817.5,6.24467728]
[1743848482819,0.00824584,1817.6,1817.5,6.77962265]
[1743848483226,0.00824584,1817.6,1817.5,7.47027442]
[1743848485620,0.00824584,1817.6,1817.5,6.93532905]
[1743848485822,0.00824584,1817.6,1817.5,7.46993579]
[1743848486125,0.00824584,1817.6,1817.5,6.77928402]
[1743848487325,0.00824584,1817.6,1817.5,7.46951187]
[1743848487526,0.00824584,1817.6,1817.5,7.4687396]
[1743848488619,0.00824584,1817.6,1817.5,6.93420361]
[1743848488815,0.00824584,1817.6,1817.5,6.24397576]
[1743848489122,0.00824584,1817.6,1817.5,6.77847952]
[1743848489626,0.00824584,1817.6,1817.5,6.24397576]
[1743848490327,0.00824584,1817.6,1817.5,6.93415935]
[1743848490627,0.00824584,1817.6,1817.5,7.46865085]
[1743848493031,0.00824584,1817.6,1817.5,7.46845653]
[1743848494832,0.00824584,1817.6,1817.5,7.46817181]
[1743848497433,0.77037,1817.8,1817.7,0.77041]
[1743848497633,2.30096,1817.9,1817.7,4.73480104]
[1743848497831,2.30096,1817.9,1817.8,2.15482704]
[1743848498031,2.30096,1817.9,1817.8,1.39798359]
[1743848498531,2.30096,1817.9,1817.8,2.15484721]
[1743848500039,2.30096,1817.9,1817.8,3.64884721]
[1743848500338,2.30096,1817.9,1817.8,3.6491225]
[1743848503838,2.30096,1817.9,1817.8,3.64935552]
[1743848505741,2.30096,1817.9,1817.8,3.64987534]
[1743848506842,2.30096,1817.9,1817.8,3.65010799]
[1743848509245,2.30096,1817.9,1817.8,2.89198359]
[1743848509438,2.30096,1817.9,1817.8,3.65007564]
[1743848511843,1.5306,1817.9,1817.8,4.42044564]
[1743848512037,0.77026,1818.1,1818.0,0.77029]
[1743848512241,0.77026,1818.1,1818.0,1.52838205]
[1743848512643,0.77026,1818.1,1818.0,2.97479205]
[1743848512850,0.77026,1818.1,1818.0,3.66497564]
[1743848514643,0.77026,1818.1,1818.0,2.90688359]
[1743848514948,0.77026,1818.1,1818.0,3.66435834]
[1743848518448,0.77026,1818.1,1818.0,3.66404975]
[1743848518645,0.77026,1818.1,1818.0,3.66400447]
[1743848519653,0.77026,1818.1,1818.0,3.66393533]
[1743848520149,0.77026,1818.1,1818.0,3.66395625]
[1743848521550,0.77026,1818.1,1818.0,44.46395625]
[1743848523252,0.77026,1818.1,1818.0,44.46392929]
[1743848524855,0.77026,1818.1,1818.0,47.67172929]
[1743848526758,0.77026,1818.1,1818.0,47.67170597]
[1743848527057,0.77026,1818.1,1818.0,44.46390597]
[1743848528359,0.77026,1818.1,1818.0,44.46393818]
[1743848528547,0.77026,1818.1,1818.0,44.46392505]
[1743848530962,0.77026,1818.1,1818.0,45.16822505]
[1743848532168,0.77026,1818.1,1818.0,45.93851505]
[1743848532461,0.77026,1818.1,1818.0,45.16858943]
[1743848534061,0.77026,1818.1,1818.0,45.1686866]
[1743848534663,0.77026,1818.1,1818.0,48.37655068]
[1743848536166,0.77026,1818.1,1818.0,48.37674471]
[1743848536458,0.77026,1818.1,1818.0,45.45574471]
[1743848536664,1.52006,1818.1,1818.0,4.65574471]
[1743848537064,1.52006,1818.1,1818.0,3.89825026]
[1743848538466,1.52006,1818.1,1818.0,4.65641216]
[1743848539470,1.52006,1818.1,1818.0,4.65661417]
[1743848539771,0.77026,1818.1,1818.0,4.65661417]
[1743848539963,0.77026,1818.1,1818.0,7.55241417]
[1743848540673,0.77026,1818.1,1818.0,48.35241417]
[1743848541370,0.77026,1818.1,1818.0,48.88847612]
[1743848541865,0.77026,1818.1,1818.0,48.35262228]
[1743848542168,0.77026,1818.1,1818.0,48.88848957]
[1743848542363,1.53844584,1818.2,1818.0,49.65877957]
[1743848542572,2.30867584,1818.2,1818.1,2.17737202]
[1743848542768,2.30867584,1818.2,1818.1,2.86782228]
[1743848542969,2.30867584,1818.2,1818.1,3.40361103]
[1743848543169,2.30867584,1818.2,1818.1,3.40368646]
[1743848544964,2.30867584,1818.2,1818.1,3.40480027]
[1743848545365,2.30867584,1818.2,1818.1,2.86909065]
[1743848546573,2.30867584,1818.2,1818.1,6.07689065]
[1743848548873,0.77847584,1818.2,1818.1,6.07689065]
[1743848549275,0.77847584,1818.2,1818.1,6.61246907]
[1743848550172,0.77847584,1818.2,1818.1,3.40466907]
[1743848550673,0.77847584,1818.2,1818.1,6.61246907]
[1743848551674,0.77847584,1818.2,1818.1,6.61234958]
[1743848552072,0.77847584,1818.2,1818.1,7.38259958]
[1743848552272,0.77847584,1818.2,1818.1,7.3822433]
[1743848552673,0.77847584,1818.2,1818.1,6.6119933]
[1743848553168,0.00824584,1818.2,1818.1,7.3822433]
[1743848553373,1.4787,1818.3,1818.1,6.6119933]
[1743848553574,2.24886,1818.3,1818.2,2.89379762]
[1743848553771,2.24886,1818.3,1818.2,3.58553519]
[1743848553972,2.24886,1818.3,1818.2,3.58535809]
[1743848554671,2.24886,1818.3,1818.2,3.58528894]
[1743848555474,2.24886,1818.3,1818.2,6.79308894]
[1743848557673,2.24886,1818.3,1818.2,6.79294074]
[1743848558876,0.77016,1818.3,1818.2,6.79294074]
[1743848559376,0.77016,1818.3,1818.2,7.32799802]
[1743848560275,0.77016,1818.3,1818.2,7.32777158]
[1743848560671,0.77016,1818.3,1818.2,6.7927143]
[1743848561177,0.77016,1818.3,1818.2,6.79272484]
[1743848564277,0.77016,1818.3,1818.2,3.58492484]
[1743848564579,0.77016,1818.3,1818.2,6.79272484]
[1743848564779,0.77016,1818.3,1818.2,6.79250889]
[1743848566574,0.77016,1818.3,1818.2,6.79250762]
[1743848567277,0.77016,1818.3,1818.2,7.3274585]
[1743848569279,0.77016,1818.3,1818.2,8.0976585]
[1743848570080,0.77016,1818.3,1818.2,7.3274585]
[1743848570376,0.77016,1818.3,1818.2,7.32791649]
[1743848572083,0.77016,1818.3,1818.2,7.32812827]
[1743848573876,0.77016,1818.3,1818.2,7.32822012]
[1743848575680,0.77016,1818.3,1818.2,7.32826263]
[1743848577480,0.77016,1818.3,1818.2,7.32847029]
[1743848579480,0.77016,1818.3,1818.2,5.91227029]
[1743848580883,0.77016,1818.3,1818.2,5.91318958]
[1743848582283,0.77016,1818.3,1818.2,5.15464161]
[1743848582482,0.77016,1818.3,1818.2,5.91324967]
[1743848582683,0.77016,1818.3,1818.2,7.33374967]
[1743848583774,0.77002,1818.7,1818.2,10.81174967]
[1743848584077,2.1692,1818.7,1818.6,0.77003]
[1743848584281,0.76993,1818.9,1818.7,0.76999]
[1743848584586,0.76988,1819.0,1818.8,4.73614914]
[1743848584778,2.1692,1819.1,1818.9,1.52828914]
[1743848584985,1.44394584,1819.1,1819.0,3.96620914]
[1743848585176,1.44394584,1819.1,1819.0,5.41650914]
[1743848585376,1.44394584,1819.1,1819.0,48.39684671]
[1743848585875,2.21376584,1819.1,1819.0,48.39441618]
[1743848586074,1.44394584,1819.1,1819.0,48.39441618]
[1743848586476,2.21376584,1819.1,1819.0,48.39441618]
[1743848589680,2.21376584,1819.1,1819.0,47.63843757]
[1743848589985,2.21376584,1819.1,1819.0,48.39247783]
[1743848590182,1.44394584,1819.1,1819.0,48.39247783]
[1743848590381,0.00824584,1819.1,1819.0,49.16201886]
[1743848591387,0.00824584,1819.1,1819.0,48.40829757]
[1743848591775,0.00824584,1819.1,1819.0,47.71656]
[1743848592576,1.39094584,1819.1,1819.0,47.71656]
[1743848594383,2.16076584,1819.1,1819.0,3.2078]
[1743848594582,3.64036584,1819.1,1819.0,3.2078]
[1743848594989,2.92476584,1819.1,1819.0,44.0078]
[1743848595691,2.15494584,1819.1,1819.0,44.0078]
[1743848595891,2.15494584,1819.1,1819.0,45.4436]
[1743848596291,2.92476584,1819.1,1819.0,45.4436]
[1743848596491,2.15494584,1819.1,1819.0,45.4436]
[1743848596693,2.15494584,1819.1,1819.0,44.0078]
[1743848597092,2.92476584,1819.1,1819.0,44.0078]
[1743848602598,2.92476584,1819.1,1819.0,44.77766]
[1743848602799,2.92476584,1819.1,1819.0,45.4231]
[1743848603499,2.92476584,1819.1,1819.0,46.19296]
[1743848603700,2.92476584,1819.1,1819.0,45.4231]
[1743848604798,2.92476584,1819.1,1819.0,44.0078]
[1743848605202,2.92476584,1819.1,1819.0,46.27706]
[1743848605500,2.92476584,1819.1,1819.0,45.5072]
[1743848607003,2.92476584,1819.1,1819.0,44.0078]
[1743848608503,2.16076584,1819.1,1819.0,46.21995539]
[1743848608705,2.16076584,1819.1,1819.0,47.63399539]
[1743848609205,2.16076584,1819.1,1819.0,44.42619539]
[1743848609505,2.16076584,1819.1,1819.0,47.63437325]
[1743848610205,2.16076584,1819.1,1819.0,46.86967325]
[1743848610405,2.16076584,1819.1,1819.0,45.45047325]
[1743848612309,4.66076584,1819.1,1819.0,0.68790867]
[1743848612510,8.13676584,1819.1,1819.0,0.55899097]
[1743848612711,11.34456584,1819.1,1818.7,0.00824584]
[1743848612904,0.76995,1818.8,1818.7,0.00824584]
[1743848613106,4.24595,1818.8,1818.7,0.00824584]
[1743848613307,8.12715,1818.8,1818.7,0.00824584]
[1743848614914,5.62715,1818.8,1818.7,0.00824584]
[1743848615907,6.34655,1818.8,1818.7,0.00824584]
[1743848636629,2.87055,1818.8,1818.7,1.45724584]
[1743848636933,2.87055,1818.8,1818.7,2.20924584]
[1743848640435,0.76995,1818.8,1818.7,2.97921584]
[1743848640735,0.76994,1818.9,1818.7,6.94074055]
[1743848640932,0.76995,1818.9,1818.8,1.4713]
[1743848641734,0.76995,1818.8,1818.7,0.76024584]
[1743848641937,0.76995,1818.8,1818.7,2.98590959]
[1743848643139,0.76995,1818.8,1818.7,2.98660879]
[1743848645044,0.76995,1818.8,1818.7,2.98648923]
[1743848646735,0.76995,1818.8,1818.7,2.98619016]
[1743848649742,0.76992,1818.9,1818.7,3.75618016]
[1743848649945,0.76992,1818.9,1818.8,2.27414432]
[1743848652243,0.76992,1818.9,1818.8,2.27367606]
[1743848652740,5.30014584,1819.1,1818.8,3.04362606]
[1743848652938,0.76988,1819.0,1818.9,2.90661]
[1743848653238,0.77809584,1819.1,1818.9,2.90658]
[1743848653442,0.77809584,1819.1,1819.0,1.4127]
[1743848655542,2.28219584,1819.1,1819.0,1.4127]
[1743848656844,0.76986,1819.0,1818.9,0.7402]
[1743848657146,2.2009,1819.0,1818.7,3.98601584]
[1743848657348,0.76991,1818.9,1818.8,0.75365247]
[1743848657644,2.27771,1818.9,1818.8,0.75365247]
[1743848659648,0.76995,1818.8,1818.7,5.44491584]
[1743848659846,2.27772,1818.9,1818.7,6.19857399]
[1743848660039,2.27772,1818.9,1818.8,2.93800815]
[1743848660239,2.27772,1818.9,1818.8,2.16805815]
[1743848660747,2.27772,1818.9,1818.8,2.93800815]
[1743848661839,0.76995,1818.8,1818.7,0.00824584]
[1743848662149,2.26505,1818.8,1818.7,0.00824584]
[1743848662542,2.26505,1818.8,1818.7,1.52064584]
[1743848662847,2.26505,1818.8,1818.7,2.27458132]
[1743848664145,0.76995,1818.8,1818.7,2.27458132]
[1743848666851,0.76995,1818.8,1818.7,2.27524638]
[1743848667852,2.26645,1818.8,1818.7,2.27524638]
[1743848669554,2.26645,1818.8,1818.7,0.76284638]
[1743848670355,2.26645,1818.8,1818.7,0.76317171]
[1743848670655,2.26645,1818.8,1818.7,3.97097218]
[1743848670854,2.26645,1818.8,1818.7,5.35277218]
[1743848671056,2.26645,1818.8,1818.7,5.35271011]
[1743848671955,4.24594,1818.9,1818.7,6.12267011]
[1743848672150,0.76994,1818.9,1818.8,2.24879788]
[1743848672354,0.76994,1818.9,1818.8,2.98759788]
[1743848672556,2.28854,1818.9,1818.8,2.98759788]
[1743848673955,2.28854,1818.9,1818.8,2.98765905]
[1743848675155,2.28854,1818.9,1818.8,1.49375905]
[1743848675349,3.04334,1818.9,1818.8,1.49375905]
[1743848675756,3.04334,1818.9,1818.8,1.49378092]
[1743848677558,3.04334,1818.9,1818.8,1.49377409]
[1743848678362,3.04334,1818.9,1818.8,1.49378772]
[1743848682862,2.28854,1818.9,1818.8,1.49378772]
[1743848683062,2.28854,1818.9,1818.8,1.49380245]
[1743848684967,2.28854,1818.9,1818.8,1.49390708]
[1743848686763,2.28854,1818.9,1818.8,0.75510708]
[1743848687161,0.76995,1818.8,1818.7,4.63274584]
[1743848687360,2.23395,1818.8,1818.7,5.38815922]
[1743848688268,2.23395,1818.8,1818.7,2.18035922]
[1743848690164,2.23395,1818.8,1818.7,0.76365922]
[1743848690364,2.23395,1818.8,1818.7,0.76386829]
[1743848690758,2.23395,1818.8,1818.7,0.76387613]
[1743848692272,2.23395,1818.8,1818.7,0.76404426]
[1743848692567,2.23395,1818.8,1818.7,0.00824584]
[1743848693971,5.70995,1818.8,1818.7,0.00824584]
[1743848697374,5.70995,1818.8,1818.7,5.84e-06]
[1743848697375,11.41775,1818.8,1818.7,5.84e-06]
[1743848697971,11.51738192,1818.8,1818.7,5.84e-06]
[1743848698171,0.77025,1818.1,1818.0,2.158]
[1743848698374,0.77029,1818.0,1817.9,3.9578]
[1743848698668,0.77029,1818.0,1817.9,45.51264396]
[1743848698669,2.21159,1818.0,1817.9,45.51264396]
[1743848698862,2.21159,1818.0,1817.9,46.95964396]
[1743848700174,2.21159,1818.0,1817.9,45.51264396]
[1743848700977,2.21159,1818.0,1817.9,45.51204306]
[1743848701778,2.21159,1818.0,1817.9,46.203]
[1743848703671,2.21159,1818.0,1817.9,47.66773]
[1743848703979,0.77029,1818.0,1817.9,47.66773]
[1743848704181,0.77029,1818.0,1817.9,46.8974]
[1743848704680,0.77029,1818.0,1817.9,47.66773]
[1743848705482,0.77029,1818.0,1817.9,46.8974]
[1743848706081,0.77029,1818.0,1817.9,47.66773]
[1743848706276,0.00824584,1818.1,1818.0,0.77029]
[1743848706481,3.2078,1818.4,1818.0,0.77029]
[1743848706482,4.2461,1818.5,1818.3,0.77014]
[1743848706675,0.7701,1818.5,1818.4,2.8584]
[1743848706875,0.7701,1818.5,1818.4,41.508]
[1743848707075,2.9107,1818.5,1818.4,41.508]
[1743848708180,2.9107,1818.5,1818.4,40.8]
[1743848709179,0.7702,1818.2,1818.1,2.2137]
[1743848709681,0.7702,1818.2,1818.1,43.0137]
[1743848710081,0.7702,1818.2,1818.1,2.2137]
[1743848710483,2.1507,1818.2,1818.1,0.7074]
[1743848710883,2.8464,1818.2,1818.1,0.7074]
[1743848715590,2.1507,1818.2,1818.1,0.7074]
[1743848716596,2.1507,1818.2,1818.1,2.117]
[1743848718095,0.7702,1818.2,1818.1,2.88725]
[1743848718393,0.7702,1818.2,1818.1,6.09505]
[1743848718791,0.7702,1818.2,1818.1,5.3248]
[1743848721496,0.7702,1818.2,1818.1,2.117]
[1743848724405,0.7702,1818.2,1818.1,2.87165726]
[1743848726104,0.7427,1818.4,1818.1,43.67197941]
[1743848726407,8.1916,1818.5,1818.2,5.42797411]
[1743848726607,0.77012,1818.4,1818.3,2.90417411]
[1743848726808,0.77012,1818.4,1818.3,1.48057411]
[1743848727912,0.77012,1818.4,1818.3,1.48102578]
[1743848729606,0.77012,1818.4,1818.3,0.7256]
[1743848729812,0.77012,1818.4,1818.3,1.48088765]
[1743848732912,0.77012,1818.4,1818.3,2.25104765]
[1743848733611,0.77012,1818.4,1818.3,1.48088765]
[1743848735210,0.77012,1818.4,1818.3,1.48072792]
[1743848735411,4.25429584,1818.6,1818.4,0.77012]
[1743848735611,4.25429584,1818.6,1818.5,0.75512792]
[1743848736008,4.25429584,1818.6,1818.5,0.75497891]
[1743848737210,0.77008,1818.5,1818.4,3.2078]
[1743848737410,3.70078,1818.5,1818.4,3.96268281]
[1743848738613,3.70078,1818.5,1818.4,3.96260176]
[1743848740608,3.70078,1818.5,1818.4,3.96249658]
[1743848741514,2.98778,1818.5,1818.4,3.96249658]
[1743848741716,2.98778,1818.5,1818.4,4.69699658]
[1743848742410,2.98778,1818.5,1818.4,4.69691632]
[1743848745320,2.98778,1818.5,1818.4,6.17161632]
[1743848746713,0.00824584,1818.6,1818.5,0.77008]
[1743848746911,0.7419,1818.9,1818.5,2.22931632]
[1743848747122,1.51181,1818.9,1818.8,3.2078]
[1743848747516,3.00701,1818.9,1818.8,6.14402137]
[1743848747817,3.00701,1818.9,1818.8,0.7075]
[1743848748117,0.76999,1818.8,1818.6,4.69881]
[1743848748321,2.22779,1818.8,1818.7,0.76238503]
[1743848748720,2.22779,1818.8,1818.7,1.52598503]
[1743848749825,2.22779,1818.8,1818.7,0.77184584]
[1743848750019,2.22779,1818.8,1818.7,0.00824584]
[1743848751621,2.22779,1818.8,1818.7,1.48420709]
[1743848751821,2.22779,1818.8,1818.7,2.95520709]
[1743848752124,2.22779,1818.8,1818.7,0.73034584]
[1743848752625,2.22779,1818.8,1818.7,0.00824584]
[1743848755227,2.22779,1818.8,1818.7,2.86713402]
[1743848755421,4.2179,1818.9,1818.7,3.63712402]
[1743848755422,4.98783,1818.9,1818.7,3.63712402]
[1743848755617,4.98783,1818.9,1818.8,2.16576318]
[1743848755924,2.21619,1819.0,1818.8,2.93571318]
[1743848756125,2.21619,1819.0,1818.9,2.1555]
[1743848756522,5.13218,1819.3,1818.9,2.1555]
[1743848756523,3.2078,1819.3,1819.0,0.76983]
[1743848756729,3.2078,1819.3,1819.0,2.87473]
[1743848756730,4.24479,1819.2,1819.0,2.87473]
[1743848756924,0.76982,1819.1,1819.0,2.1049]
[1743848757125,0.76982,1819.1,1819.0,2.85857967]
[1743848757326,2.28862,1819.1,1819.0,2.85857967]
[1743848758231,2.28862,1819.1,1819.0,2.1049]
[1743848759934,0.76986,1819.0,1818.9,3.9515]
[1743848760129,2.19206,1819.0,1818.9,4.70468042]
[1743848760327,2.19206,1819.0,1818.9,4.70474179]
[1743848764138,2.19206,1819.0,1818.9,3.9515]
[1743848764439,2.19206,1819.0,1818.9,1.49682233]
[1743848764639,2.19206,1819.0,1818.9,4.70462233]
[1743848765736,2.19206,1819.0,1818.9,5.47453233]
[1743848766038,1.4222,1819.0,1818.9,6.99963233]
[1743848766936,1.4222,1819.0,1818.9,6.99950786]
[1743848767236,2.19206,1819.0,1818.9,6.99950786]
[1743848767938,2.19206,1819.0,1818.9,6.22959786]
[1743848768533,2.19206,1819.0,1818.9,3.9515]
[1743848770936,0.76995,1818.9,1818.7,3.98602584]
[1743848771138,2.94435,1818.9,1818.8,0.75309622]
[1743848771546,2.94435,1818.9,1818.8,2.14919622]
[1743848774442,2.94435,1818.9,1818.8,2.14989124]
[1743848775445,2.94435,1818.9,1818.8,2.15033728]
[1743848776040,2.94435,1818.9,1818.8,1.3961]
[1743848776345,2.94435,1818.9,1818.8,2.15031956]
[1743848777846,2.94435,1818.9,1818.8,0.75421956]
[1743848778048,0.76995,1818.8,1818.7,4.71492584]
[1743848778246,2.23695,1818.8,1818.7,5.46952506]
[1743848781650,2.23695,1818.8,1818.7,5.46971722]
[1743848783349,2.23695,1818.8,1818.7,2.26191722]
[1743848783851,2.23695,1818.8,1818.7,3.78781722]
[1743848784652,2.23695,1818.8,1818.7,3.01783722]
[1743848785151,2.23695,1818.8,1818.7,3.01813225]
[1743848785749,2.23695,1818.8,1818.7,6.99592225]
[1743848786650,2.23695,1818.8,1818.7,3.97113225]
[1743848786852,5.49335,1818.8,1818.7,0.76333225]
[1743848787145,2.99335,1818.8,1818.7,0.00824584]
[1743848788342,1.9251,1818.6,1818.2,3.2078]
[1743848788547,0.7702,1818.2,1818.1,40.8]
[1743848788852,0.7702,1818.2,1818.1,41.55506037]
[1743848789946,2.9266,1818.2,1818.1,41.55506037]
[1743848790944,2.9266,1818.2,1818.1,41.55400642]
[1743848791646,2.9266,1818.2,1818.1,41.55366321]
[1743848791948,2.9266,1818.2,1818.1,40.8]
[1743848792143,3.6406,1818.2,1818.1,40.8]
[1743848796155,2.1564,1818.2,1818.1,41.57025]
[1743848796357,2.1564,1818.2,1818.1,42.97345]
[1743848796655,2.1564,1818.2,1818.1,43.67025]
[1743848797252,2.9266,1818.2,1818.1,43.67025]
[1743848798551,2.1564,1818.2,1818.1,43.67025]
[1743848799158,0.77843584,1818.3,1818.2,0.7702]
[1743848799159,0.00824584,1818.3,1818.2,0.7702]
[1743848799352,0.00824584,1818.3,1818.2,5.4026]
[1743848799555,0.77840584,1818.3,1818.2,5.4026]
[1743848800757,0.77840584,1818.3,1818.2,6.15522714]
[1743848801356,0.77840584,1818.3,1818.2,5.4026]
[1743848801559,0.77840584,1818.3,1818.2,6.15527056]
[1743848801560,2.29270584,1818.3,1818.2,6.15527056]
[1743848802162,1.52254584,1818.3,1818.2,6.15527056]
[1743848802459,0.00824584,1818.3,1818.2,6.15527056]
[1743848807966,0.77840584,1818.3,1818.2,6.15527056]
[1743848808167,2.24340584,1818.3,1818.2,6.15527056]
[1743848808971,1.47324584,1818.3,1818.2,6.15527056]
[1743848810065,2.24340584,1818.3,1818.2,6.15527056]
[1743848810666,2.24340584,1818.3,1818.2,6.15622892]
[1743848811572,2.24340584,1818.3,1818.2,6.15640009]
[1743848812370,2.24340584,1818.3,1818.2,6.15660036]
[1743848814073,2.24340584,1818.3,1818.2,6.15683113]
[1743848816476,2.24340584,1818.3,1818.2,2.94903113]
[1743848816675,1.47324584,1818.3,1818.2,6.15683113]
[1743848817077,2.24340584,1818.3,1818.2,6.15683113]
[1743848817874,2.24340584,1818.3,1818.2,6.15814864]
[1743848820573,2.24340584,1818.3,1818.2,3.96334864]
[1743848821083,2.24340584,1818.3,1818.2,3.96350133]
[1743848822573,2.24340584,1818.3,1818.2,3.96354211]
[1743848824474,2.24340584,1818.3,1818.2,3.96356338]
[1743848826178,2.24340584,1818.3,1818.2,3.96363126]
[1743848828784,5.13276,1818.8,1818.2,3.96363126]
[1743848828984,0.77012,1818.4,1818.3,2.98458126]
[1743848829282,0.77012,1818.4,1818.3,3.70813126]
[1743848829884,0.77012,1818.4,1818.3,3.70755744]
[1743848830090,0.77011,1818.5,1818.3,4.47770744]
[1743848830285,0.77011,1818.5,1818.4,2.17195744]
[1743848830986,0.77011,1818.5,1818.4,0.75525744]
[1743848832088,1.49491,1818.5,1818.4,0.75525744]
[1743848832886,1.49491,1818.5,1818.2,5.39467]
[1743848832887,0.7248,1818.5,1818.2,5.39467]
[1743848833088,3.00382,1818.4,1818.3,0.75543099]
[1743848833384,0.77016,1818.3,1818.2,6.08907]
[1743848833578,0.77016,1818.3,1818.2,6.84449221]
[1743848833579,2.21356,1818.3,1818.2,6.84449221]
[1743848834485,1.4434,1818.3,1818.2,6.84449221]
[1743848835287,2.21356,1818.3,1818.2,6.84449221]
[1743848835680,2.21356,1818.3,1818.2,6.84421685]
[1743848836088,2.21356,1818.3,1818.2,5.3189]
[1743848836388,2.21356,1818.3,1818.2,4.65737745]
[1743848836586,2.91216,1818.3,1818.2,3.9022]
[1743848836979,2.91216,1818.3,1818.2,3.96302112]
[1743848840082,2.91216,1818.3,1818.2,3.96303487]
[1743848841890,2.91216,1818.3,1818.2,3.96305537]
[1743848843793,2.91216,1818.3,1818.2,3.96300896]
[1743848845392,2.91216,1818.3,1818.2,3.96297709]
[1743848845587,2.91216,1818.3,1818.2,3.96297802]
[1743848847398,2.91216,1818.3,1818.2,3.96296687]
[1743848847594,2.21356,1818.3,1818.2,3.96296687]
[1743848848488,2.21356,1818.3,1818.2,5.40886687]
[1743848848692,2.21356,1818.3,1818.2,6.87986687]
[1743848849091,2.21356,1818.3,1818.2,6.10966687]
[1743848850895,2.21356,1818.3,1818.2,5.3545]
[1743848851200,2.21356,1818.3,1818.2,6.10966146]
[1743848851496,3.476,1818.3,1818.2,6.87986146]
[1743848852598,4.24616,1818.3,1818.2,6.87986146]
[1743848853399,3.476,1818.3,1818.2,6.87986146]
[1743848853601,0.77008,1818.5,1818.4,0.77012]
[1743848853903,4.24608,1818.5,1818.4,0.75516146]
[1743848854502,4.24608,1818.5,1818.4,2.28346146]
[1743848856303,4.24608,1818.5,1818.4,1.5283]
[1743848856504,0.77012,1818.4,1818.3,0.7227]
[1743848856701,2.89382,1818.4,1818.3,1.47754356]
[1743848857008,2.89382,1818.4,1818.3,0.7227]
[1743848857200,2.89382,1818.4,1818.3,1.47756976]
[1743848857505,2.89382,1818.4,1818.3,2.88546976]
[1743848857706,2.19002,1818.4,1818.3,2.88546976]
[1743848859608,2.19002,1818.4,1818.3,6.09326976]
[1743848860211,2.92862,1818.4,1818.3,4.68536976]
[1743848861513,2.92862,1818.4,1818.3,3.96266976]
[1743848863514,2.92862,1818.4,1818.3,0.75486976]
[1743848864514,0.77016,1818.3,1818.2,2.153]
[1743848864815,2.95026,1818.3,1818.2,2.90836874]
[1743848865513,2.95026,1818.3,1818.2,1.46668161]
[1743848869013,2.95026,1818.3,1818.2,0.7113]
[1743848869316,2.95026,1818.3,1818.2,1.46667963]
[1743848870613,2.95026,1818.3,1818.2,2.88807963]
[1743848872812,2.95026,1818.3,1818.2,2.88813279]
[1743848874220,0.77016,1818.3,1818.2,3.65833279]
[1743848874414,0.77016,1818.3,1818.2,4.38173279]
[1743848876336,0.77016,1818.3,1818.2,4.38176524]
[1743848876535,0.77014,1818.4,1818.3,0.77016]
[1743848876726,4.24614,1818.4,1818.3,2.92132524]
[1743848877130,4.24612,1818.4,1818.3,2.92132524]
[1743848877325,4.24612,1818.4,1818.3,2.15116524]
[1743848877530,5.00172,1818.4,1818.3,2.15116524]
[1743848878134,5.00172,1818.4,1818.3,2.15106485]
[1743848879940,6.38922,1818.4,1818.3,2.15104924]
[1743848881438,6.38922,1818.4,1818.3,0.75534924]
[1743848883932,0.77016,1818.3,1818.2,0.7113]
[1743848884137,3.06036,1818.3,1818.2,1.46687833]
[1743848886542,3.06036,1818.3,1818.2,1.46706651]
[1743848887634,3.06036,1818.3,1818.2,0.75576651]
[1743848888243,3.06036,1818.3,1818.2,1.52596651]
[1743848888443,2.29686,1818.3,1818.2,0.75584764]
[1743848888643,2.29686,1818.3,1818.2,2.26284764]
[1743848890136,2.29686,1818.3,1818.2,1.507]
[1743848890341,2.29686,1818.3,1818.2,3.03304481]
[1743848890540,2.29686,1818.3,1818.2,2.26284481]
[1743848892036,2.29686,1818.3,1818.2,2.26285383]
[1743848893844,2.29686,1818.3,1818.2,2.26285027]
[1743848895742,2.29686,1818.3,1818.2,2.2628445]
[1743848896744,0.77016,1818.3,1818.2,2.2628445]
[1743848896946,0.77016,1818.3,1818.2,3.0124445]
[1743848897146,0.77016,1818.3,1818.2,3.01244401]
[1743848897442,0.77016,1818.3,1818.2,2.2566]
[1743848897745,0.77016,1818.3,1818.2,3.01243896]
[1743848900446,2.25096,1818.3,1818.2,3.01243896]
[1743848901241,2.25096,1818.3,1818.2,3.01243215]
[1743848903449,2.25096,1818.3,1818.2,2.2566]
[1743848903647,2.25096,1818.3,1818.2,3.01244827]
[1743848906552,2.25096,1818.3,1818.2,3.01247684]
[1743848908056,3.2078,1818.7,1818.2,3.01247684]
[1743848908355,0.77009,1818.5,1818.3,6.96518971]
[1743848908654,0.77009,1818.5,1818.4,2.22804971]
[1743848910151,2.16399,1818.5,1818.4,1.4721]
[1743848910355,2.16399,1818.5,1818.4,2.22801312]
[1743848912059,2.16399,1818.5,1818.4,2.22788335]
[1743848913861,2.16399,1818.5,1818.4,2.22774332]
[1743848915664,2.16399,1818.5,1818.4,2.22770283]
[1743848918268,2.16399,1818.5,1818.4,0.75560283]
[1743848919266,0.77012,1818.4,1818.3,0.7592]
[1743848919470,2.17142,1818.4,1818.3,3.01430417]
[1743848921270,2.17142,1818.4,1818.3,3.01432204]
[1743848922366,2.17142,1818.4,1818.3,2.2587]
[1743848922570,2.17142,1818.4,1818.3,3.0143428]
[1743848925672,2.17142,1818.4,1818.3,3.01439339]
[1743848926967,2.17142,1818.4,1818.3,2.2587]
[1743848928072,0.77012,1818.4,1818.3,2.2587]
[1743848928375,0.77012,1818.4,1818.3,5.4665]
[1743848929676,0.77012,1818.4,1818.3,6.23666]
[1743848929877,0.77012,1818.4,1818.3,5.4665]
[1743848930370,0.77012,1818.4,1818.3,6.23666]
[1743848930677,4.9056,1818.6,1818.3,6.23666]
[1743848930975,0.77008,1818.5,1818.4,1.4468]
[1743848931175,0.77008,1818.5,1818.4,4.6546]
[1743848932278,0.77008,1818.5,1818.4,1.4468]
[1743848932583,0.77008,1818.5,1818.4,4.6546]
[1743848934378,0.77008,1818.5,1818.4,1.4468]